[Event "Late-Titled-Tuesday-Blitz-September-05-2023"]
[Site "Chess.com"]
[Date "2023.09.05"]
[Round "9"]
[White "BogdanDeac"]
[Black "nihalsarin"]
[Result "0-1"]
[WhiteElo "3004"]
[BlackElo "3152"]
[TimeControl "180+1"]
[EndTime "15:45:02 PDT"]
[Termination "nihalsarin won on time"]

1. d4 {[%clk 0:03:00.9]} 1... a6 {[%clk 0:02:52.1]} 2. e4 {[%clk 0:03:00.7]}
2... c6 {[%clk 0:02:49.9]} 3. Nc3 {[%clk 0:03:00.8]} 3... d5 {[%clk 0:02:49.4]}
4. Nf3 {[%clk 0:03:01.5]} 4... Bg4 {[%clk 0:02:49.1]} 5. h3 {[%clk 0:03:01.1]}
5... Bh5 {[%clk 0:02:33.8]} 6. exd5 {[%clk 0:02:59.7]} 6... cxd5 {[%clk
0:02:34.7]} 7. g4 {[%clk 0:03:00.4]} 7... Bg6 {[%clk 0:02:34.7]} 8. h4 {[%clk
0:03:01]} 8... Nc6 {[%clk 0:02:27.1]} 9. Ne5 {[%clk 0:01:22.4]} 9... f6 {[%clk
0:01:34.8]} 10. Nxg6 {[%clk 0:01:10.1]} 10... hxg6 {[%clk 0:01:35.7]} 11. Bd3
{[%clk 0:01:05.8]} 11... Kf7 {[%clk 0:01:36.1]} 12. h5 {[%clk 0:01:01.2]} 12...
gxh5 {[%clk 0:01:37]} 13. gxh5 {[%clk 0:01:00.5]} 13... e6 {[%clk 0:01:37.5]}
14. Bg6+ {[%clk 0:00:59.4]} 14... Ke7 {[%clk 0:01:37.8]} 15. Qg4 {[%clk
0:00:58.2]} 15... Qb6 {[%clk 0:01:27.6]} 16. Ne2 {[%clk 0:00:48.5]} 16... Nh6
{[%clk 0:01:27.7]} 17. Bxh6 {[%clk 0:00:33.5]} 17... Rxh6 {[%clk 0:01:28.6]} 18.
O-O-O {[%clk 0:00:33.6]} 18... f5 {[%clk 0:01:13]} 19. Qf4 {[%clk 0:00:16.3]}
19... Kd7 {[%clk 0:01:08.5]} 20. Qe3 {[%clk 0:00:15.3]} 20... Bd6 {[%clk
0:00:57.2]} 21. Nf4 {[%clk 0:00:10.2]} 21... Bxf4 {[%clk 0:00:57.4]} 22. Qxf4
{[%clk 0:00:10.8]} 22... Qc7 {[%clk 0:00:58.3]} 23. Qe3 {[%clk 0:00:08.5]} 23...
Rf8 {[%clk 0:00:54.5]} 24. Kb1 {[%clk 0:00:07.6]} 24... Ne7 {[%clk 0:00:52.5]}
25. Rhg1 {[%clk 0:00:05.1]} 25... Rf6 {[%clk 0:00:50.3]} 26. c4 {[%clk
0:00:04.9]} 26... dxc4 {[%clk 0:00:34.1]} 27. d5 {[%clk 0:00:04.6]} 27... Nxd5
{[%clk 0:00:34.6]} 28. Qf3 {[%clk 0:00:03.5]} 28... Kc8 {[%clk 0:00:30.5]} 29.
Rge1 {[%clk 0:00:03.2]} 29... Kb8 {[%clk 0:00:27.7]} 30. Re2 {[%clk 0:00:01.6]}
30... Rh8 {[%clk 0:00:26.5]} 0-1

[Event "Late-Titled-Tuesday-Blitz-September-05-2023"]
[Site "Chess.com"]
[Date "2023.09.05"]
[Round "9"]
[White "Bobbybunny"]
[Black "Jahonas"]
[Result "0-1"]
[WhiteElo "2222"]
[BlackElo "2400"]
[TimeControl "180+1"]
[EndTime "15:45:05 PDT"]
[Termination "Jahonas won by resignation"]

1. e4 {[%clk 0:03:00.9]} 1... c6 {[%clk 0:02:59.8]} 2. d4 {[%clk 0:02:59.5]}
2... d5 {[%clk 0:03:00.2]} 3. exd5 {[%clk 0:03:00]} 3... cxd5 {[%clk 0:03:00.2]}
4. Bd3 {[%clk 0:02:59.9]} 4... Nf6 {[%clk 0:03:00.6]} 5. h3 {[%clk 0:02:58.7]}
5... Nc6 {[%clk 0:03:01]} 6. c3 {[%clk 0:02:58.3]} 6... e5 {[%clk 0:03:00.9]} 7.
dxe5 {[%clk 0:02:57]} 7... Nxe5 {[%clk 0:03:00.9]} 8. Nf3 {[%clk 0:02:57.5]}
8... Nxd3+ {[%clk 0:03:00.6]} 9. Qxd3 {[%clk 0:02:57.5]} 9... Be7 {[%clk
0:03:01]} 10. O-O {[%clk 0:02:57.1]} 10... O-O {[%clk 0:03:01.1]} 11. Bf4 {[%clk
0:02:53.8]} 11... Qb6 {[%clk 0:02:49.9]} 12. Nbd2 {[%clk 0:02:37.2]} 12... g6
{[%clk 0:02:48.2]} 13. Nb3 {[%clk 0:02:34.5]} 13... Bf5 {[%clk 0:02:41.8]} 14.
Qd4 {[%clk 0:02:34.5]} 14... Qa6 {[%clk 0:02:24.2]} 15. Rfe1 {[%clk 0:02:26.8]}
15... Rfe8 {[%clk 0:02:22.3]} 16. Be5 {[%clk 0:02:14.1]} 16... Be4 {[%clk
0:02:20.8]} 17. Ng5 {[%clk 0:01:52.7]} 17... h6 {[%clk 0:02:10.8]} 18. Nxe4
{[%clk 0:01:49.1]} 18... dxe4 {[%clk 0:02:06.9]} 19. Qe3 {[%clk 0:01:28.3]}
19... Kh7 {[%clk 0:01:46]} 20. Bd4 {[%clk 0:01:21.3]} 20... Qe6 {[%clk
0:01:29.2]} 21. Nc5 {[%clk 0:00:57.4]} 21... Bxc5 {[%clk 0:01:27.8]} 22. Bxc5
{[%clk 0:00:56.3]} 22... b6 {[%clk 0:01:27.4]} 23. Bd4 {[%clk 0:00:55.3]} 23...
Nd5 {[%clk 0:01:24.4]} 24. Qg3 {[%clk 0:00:53]} 24... f5 {[%clk 0:01:21.3]} 25.
c4 {[%clk 0:00:48.2]} 25... Nf6 {[%clk 0:01:10.8]} 26. b3 {[%clk 0:00:41.4]}
26... Nh5 {[%clk 0:01:02.4]} 27. Qc3 {[%clk 0:00:31.8]} 27... Rad8 {[%clk
0:01:00.4]} 28. Rad1 {[%clk 0:00:29.6]} 28... Rd7 {[%clk 0:01:00.1]} 29. Qc1
{[%clk 0:00:22.3]} 29... Red8 {[%clk 0:00:58.9]} 30. Ba1 {[%clk 0:00:20.3]}
30... Rd3 {[%clk 0:00:43.2]} 31. Rxd3 {[%clk 0:00:18.1]} 31... Rxd3 {[%clk
0:00:42.7]} 32. Qb2 {[%clk 0:00:18]} 32... Rd8 {[%clk 0:00:32.8]} 33. Rc1 {[%clk
0:00:14.4]} 33... Qd7 {[%clk 0:00:30.3]} 34. b4 {[%clk 0:00:13.2]} 34... Nf4
{[%clk 0:00:29.6]} 35. Kh2 {[%clk 0:00:08.4]} 35... Nd3 {[%clk 0:00:29.5]} 36.
Qf6 {[%clk 0:00:06.9]} 36... Nxc1 {[%clk 0:00:29.5]} 37. Bb2 {[%clk 0:00:05.6]}
37... Nd3 {[%clk 0:00:29.6]} 0-1

[Event "Late-Titled-Tuesday-Blitz-September-05-2023"]
[Site "Chess.com"]
[Date "2023.09.05"]
[Round "9"]
[White "SilverCityIndigo"]
[Black "copanchess"]
[Result "0-1"]
[WhiteElo "2294"]
[BlackElo "2184"]
[TimeControl "180+1"]
[EndTime "15:45:12 PDT"]
[Termination "copanchess won by resignation"]

1. d4 {[%clk 0:01:27.7]} 1... Nf6 {[%clk 0:02:56.5]} 2. c4 {[%clk 0:01:26.8]}
2... e6 {[%clk 0:02:55.8]} 3. Nc3 {[%clk 0:01:27.3]} 3... d5 {[%clk 0:02:56.4]}
4. cxd5 {[%clk 0:01:25.4]} 4... exd5 {[%clk 0:02:56]} 5. Bg5 {[%clk 0:01:25.9]}
5... Nbd7 {[%clk 0:02:49.7]} 6. e3 {[%clk 0:01:25]} 6... c6 {[%clk 0:02:45.1]}
7. Bd3 {[%clk 0:01:23.8]} 7... Bd6 {[%clk 0:02:45.6]} 8. Nge2 {[%clk 0:01:24]}
8... O-O {[%clk 0:02:46.1]} 9. O-O {[%clk 0:01:21.3]} 9... h6 {[%clk 0:02:46.7]}
10. Bh4 {[%clk 0:01:21]} 10... Re8 {[%clk 0:02:47]} 11. Bg3 {[%clk 0:01:18.5]}
11... Bxg3 {[%clk 0:02:45.4]} 12. Nxg3 {[%clk 0:01:18]} 12... a5 {[%clk
0:02:37.7]} 13. Rb1 {[%clk 0:01:16.2]} 13... c5 {[%clk 0:02:34.9]} 14. dxc5
{[%clk 0:01:15]} 14... Nxc5 {[%clk 0:02:34.6]} 15. Bb5 {[%clk 0:01:15.4]} 15...
Bd7 {[%clk 0:02:30.6]} 16. a4 {[%clk 0:01:15.9]} 16... Bc6 {[%clk 0:02:27.6]}
17. Nf5 {[%clk 0:01:14.1]} 17... Nfe4 {[%clk 0:02:22.6]} 18. Qg4 {[%clk
0:01:07.1]} 18... Qf6 {[%clk 0:02:13.8]} 19. Nd4 {[%clk 0:00:33.7]} 19... Nd2
{[%clk 0:02:03.8]} 20. Rbd1 {[%clk 0:00:27.7]} 20... Nxf1 {[%clk 0:02:02.6]} 21.
Rxf1 {[%clk 0:00:24.4]} 21... Ne4 {[%clk 0:02:00.5]} 22. Nce2 {[%clk 0:00:15.2]}
22... Re5 {[%clk 0:01:48.2]} 23. f4 {[%clk 0:00:11.3]} 23... h5 {[%clk
0:01:34.4]} 24. fxe5 {[%clk 0:00:10.1]} 24... Qxf1+ {[%clk 0:01:33.2]} 25. Kxf1
{[%clk 0:00:11]} 25... hxg4 {[%clk 0:01:33.3]} 26. Nxc6 {[%clk 0:00:11.3]} 26...
bxc6 {[%clk 0:01:32.5]} 27. Bxc6 {[%clk 0:00:12.2]} 27... Rd8 {[%clk 0:01:29.2]}
28. Nd4 {[%clk 0:00:12]} 28... Kf8 {[%clk 0:01:21.3]} 29. Ke2 {[%clk 0:00:12.5]}
29... Ke7 {[%clk 0:01:20.6]} 30. Bb5 {[%clk 0:00:12.6]} 30... Rc8 {[%clk
0:01:13]} 31. Nc6+ {[%clk 0:00:11.2]} 31... Ke6 {[%clk 0:01:11.5]} 32. Nxa5
{[%clk 0:00:08.9]} 32... Rc2+ {[%clk 0:01:07.3]} 33. Kf1 {[%clk 0:00:08.1]}
33... Rf2+ {[%clk 0:01:03]} 34. Kg1 {[%clk 0:00:07.6]} 34... Rxb2 {[%clk
0:01:02.9]} 35. h4 {[%clk 0:00:02.7]} 35... g3 {[%clk 0:01:01.3]} 36. Kf1 {[%clk
0:00:03.2]} 36... Kxe5 {[%clk 0:00:59.8]} 37. Nc6+ {[%clk 0:00:02.7]} 37... Kd6
{[%clk 0:00:59.1]} 38. Nd4 {[%clk 0:00:03.1]} 38... g6 {[%clk 0:00:54.8]} 39.
Nf3 {[%clk 0:00:03.1]} 39... Kc5 {[%clk 0:00:51.6]} 40. Ng5 {[%clk 0:00:03.3]}
40... Nxg5 {[%clk 0:00:49.2]} 41. hxg5 {[%clk 0:00:04.2]} 41... Kd6 {[%clk
0:00:48.6]} 42. Be8 {[%clk 0:00:04.2]} 42... Ke7 {[%clk 0:00:48]} 43. Bc6 {[%clk
0:00:05]} 43... Ke6 {[%clk 0:00:47.6]} 44. a5 {[%clk 0:00:05]} 44... Ra2 {[%clk
0:00:46.6]} 45. e4 {[%clk 0:00:05.3]} 45... Rxa5 {[%clk 0:00:45.1]} 46. exd5+
{[%clk 0:00:05.2]} 46... Rxd5 {[%clk 0:00:44.7]} 47. Ke2 {[%clk 0:00:06]} 47...
Rxg5 {[%clk 0:00:43.9]} 0-1

[Event "Late-Titled-Tuesday-Blitz-September-05-2023"]
[Site "Chess.com"]
[Date "2023.09.05"]
[Round "9"]
[White "TheRigos"]
[Black "BeanScreen"]
[Result "1-0"]
[WhiteElo "2580"]
[BlackElo "2691"]
[TimeControl "180+1"]
[EndTime "15:45:14 PDT"]
[Termination "TheRigos won by checkmate"]

1. Nf3 {[%clk 0:03:00.9]} 1... d5 {[%clk 0:02:59.5]} 2. g3 {[%clk 0:03:00.4]}
2... Nc6 {[%clk 0:02:59.2]} 3. Bg2 {[%clk 0:02:46.2]} 3... e5 {[%clk 0:02:58.7]}
4. O-O {[%clk 0:02:45.9]} 4... h6 {[%clk 0:02:59.2]} 5. c4 {[%clk 0:02:41.9]}
5... dxc4 {[%clk 0:02:51.5]} 6. Qa4 {[%clk 0:02:37.7]} 6... Bd6 {[%clk
0:02:46.5]} 7. Na3 {[%clk 0:02:30.1]} 7... a6 {[%clk 0:02:42.9]} 8. Nxc4 {[%clk
0:02:28]} 8... b5 {[%clk 0:02:41.6]} 9. Nxd6+ {[%clk 0:02:27.4]} 9... cxd6
{[%clk 0:02:34.9]} 10. Qc2 {[%clk 0:02:20.4]} 10... Bb7 {[%clk 0:02:31.3]} 11.
d4 {[%clk 0:02:20]} 11... Rc8 {[%clk 0:02:27.1]} 12. dxe5 {[%clk 0:02:00.1]}
12... dxe5 {[%clk 0:02:05.5]} 13. Rd1 {[%clk 0:01:44.2]} 13... Qe7 {[%clk
0:02:03.9]} 14. Qf5 {[%clk 0:01:32.5]} 14... Nf6 {[%clk 0:01:56.2]} 15. Nxe5
{[%clk 0:01:26.7]} 15... Nxe5 {[%clk 0:01:33.9]} 16. Bxb7 {[%clk 0:01:24.7]}
16... Rc4 {[%clk 0:00:50.5]} 17. Bf4 {[%clk 0:01:02.5]} 17... Rc5 {[%clk
0:00:37.6]} 18. b4 {[%clk 0:00:56.9]} 18... Nf3+ {[%clk 0:00:35.8]} 19. exf3
{[%clk 0:00:57]} 19... Rxf5 {[%clk 0:00:36.5]} 20. Bc6+ {[%clk 0:00:55.1]} 20...
Nd7 {[%clk 0:00:19.5]} 21. Re1 {[%clk 0:00:53.8]} 21... Rf6 {[%clk 0:00:19.7]}
22. Bxd7+ {[%clk 0:00:42]} 22... Kxd7 {[%clk 0:00:19.5]} 23. Rad1+ {[%clk
0:00:42.5]} 23... Ke8 {[%clk 0:00:16.1]} 24. Rxe7+ {[%clk 0:00:28.3]} 24... Kxe7
{[%clk 0:00:17]} 25. Kg2 {[%clk 0:00:28.6]} 25... Rd8 {[%clk 0:00:15.8]} 26. Rc1
{[%clk 0:00:27.8]} 26... Rd7 {[%clk 0:00:15.4]} 27. Be3 {[%clk 0:00:27.2]} 27...
Re6 {[%clk 0:00:14.4]} 28. Rc8 {[%clk 0:00:26]} 28... Kf6 {[%clk 0:00:14.4]} 29.
h4 {[%clk 0:00:24.2]} 29... Kg6 {[%clk 0:00:14.5]} 30. Rh8 {[%clk 0:00:20.1]}
30... Rc7 {[%clk 0:00:12.3]} 31. g4 {[%clk 0:00:19.9]} 31... Rc4 {[%clk
0:00:08.3]} 32. Bc5 {[%clk 0:00:12.7]} 32... f5 {[%clk 0:00:06.4]} 33. h5+
{[%clk 0:00:10.5]} 33... Kf6 {[%clk 0:00:05.7]} 34. Rf8+ {[%clk 0:00:10.6]}
34... Ke5 {[%clk 0:00:06.2]} 35. Rxf5# {[%clk 0:00:11.5]} 1-0

[Event "Late-Titled-Tuesday-Blitz-September-05-2023"]
[Site "Chess.com"]
[Date "2023.09.05"]
[Round "9"]
[White "CFalcons8"]
[Black "sjoerd893"]
[Result "0-1"]
[WhiteElo "2325"]
[BlackElo "2443"]
[TimeControl "180+1"]
[EndTime "15:45:16 PDT"]
[Termination "sjoerd893 won by resignation"]

1. e4 {[%clk 0:02:55.5]} 1... c5 {[%clk 0:02:59.3]} 2. Nf3 {[%clk 0:02:54.7]}
2... Nc6 {[%clk 0:02:55.6]} 3. d4 {[%clk 0:02:55.1]} 3... cxd4 {[%clk
0:02:53.8]} 4. Nxd4 {[%clk 0:02:56]} 4... Nf6 {[%clk 0:02:53.6]} 5. Nc3 {[%clk
0:02:56]} 5... e5 {[%clk 0:02:52.2]} 6. Ndb5 {[%clk 0:02:56.2]} 6... d6 {[%clk
0:02:52.3]} 7. Bg5 {[%clk 0:02:56.3]} 7... a6 {[%clk 0:02:52.3]} 8. Na3 {[%clk
0:02:56.7]} 8... b5 {[%clk 0:02:52.9]} 9. Nd5 {[%clk 0:02:56.9]} 9... Be7 {[%clk
0:02:53.1]} 10. Bxf6 {[%clk 0:02:57.6]} 10... Bxf6 {[%clk 0:02:54]} 11. c4
{[%clk 0:02:57.3]} 11... b4 {[%clk 0:02:53.9]} 12. Nc2 {[%clk 0:02:57.5]} 12...
a5 {[%clk 0:02:54.5]} 13. g3 {[%clk 0:02:57.5]} 13... O-O {[%clk 0:02:54.5]} 14.
Bg2 {[%clk 0:02:58.1]} 14... g6 {[%clk 0:02:54.9]} 15. O-O {[%clk 0:02:58.5]}
15... Bg7 {[%clk 0:02:55.3]} 16. Qd3 {[%clk 0:02:58.4]} 16... Be6 {[%clk
0:02:51]} 17. b3 {[%clk 0:02:58.9]} 17... Kh8 {[%clk 0:02:47.8]} 18. Rad1 {[%clk
0:02:55.3]} 18... Ra7 {[%clk 0:02:46]} 19. f4 {[%clk 0:02:51.8]} 19... Nd4
{[%clk 0:02:31.5]} 20. Nxd4 {[%clk 0:02:46.4]} 20... exd4 {[%clk 0:02:31.4]} 21.
f5 {[%clk 0:02:46]} 21... gxf5 {[%clk 0:02:18.3]} 22. exf5 {[%clk 0:02:46.9]}
22... Bxd5 {[%clk 0:02:18.4]} 23. Bxd5 {[%clk 0:02:47.8]} 23... Qg5 {[%clk
0:02:13.2]} 24. Rf4 {[%clk 0:02:28.6]} 24... Re7 {[%clk 0:01:35.7]} 25. Qf1
{[%clk 0:01:28.4]} 25... Bf6 {[%clk 0:01:22.7]} 26. Bf3 {[%clk 0:01:04.2]} 26...
Rg8 {[%clk 0:00:50.7]} 27. Bg2 {[%clk 0:00:13.4]} 27... Re3 {[%clk 0:00:38.8]}
28. Rd3 {[%clk 0:00:08.6]} 28... Be5 {[%clk 0:00:29.4]} 29. Rh4 {[%clk
0:00:02.2]} 29... Rxd3 {[%clk 0:00:10.9]} 30. Qxd3 {[%clk 0:00:03.1]} 30... Bf6
{[%clk 0:00:08.9]} 31. Bf3 {[%clk 0:00:02.7]} 31... Qc1+ {[%clk 0:00:08.8]} 32.
Kg2 {[%clk 0:00:02.3]} 32... Bxh4 {[%clk 0:00:09.1]} 0-1

[Event "Late-Titled-Tuesday-Blitz-September-05-2023"]
[Site "Chess.com"]
[Date "2023.09.05"]
[Round "9"]
[White "Zhigalko_Sergei"]
[Black "Rutricks"]
[Result "0-1"]
[WhiteElo "2872"]
[BlackElo "2697"]
[TimeControl "180+1"]
[EndTime "15:45:17 PDT"]
[Termination "Rutricks won on time"]

1. e4 {[%clk 0:03:00.9]} 1... Nf6 {[%clk 0:02:59.4]} 2. e5 {[%clk 0:03:01.2]}
2... Nd5 {[%clk 0:02:59.7]} 3. d4 {[%clk 0:03:01.8]} 3... d6 {[%clk 0:02:59.4]}
4. Nf3 {[%clk 0:03:02.5]} 4... c6 {[%clk 0:02:59]} 5. c4 {[%clk 0:02:55.1]} 5...
Nc7 {[%clk 0:02:58.5]} 6. Bd3 {[%clk 0:02:36.9]} 6... Bg4 {[%clk 0:02:58.1]} 7.
O-O {[%clk 0:02:34.9]} 7... dxe5 {[%clk 0:02:56.1]} 8. dxe5 {[%clk 0:02:34.6]}
8... Nd7 {[%clk 0:02:56.6]} 9. Bf4 {[%clk 0:02:19.1]} 9... Ne6 {[%clk
0:02:17.2]} 10. Bg3 {[%clk 0:02:12.7]} 10... Qb6 {[%clk 0:02:17.1]} 11. Nbd2
{[%clk 0:02:01.5]} 11... Qxb2 {[%clk 0:02:04.5]} 12. h3 {[%clk 0:01:49.3]} 12...
Bxf3 {[%clk 0:01:58.5]} 13. Nxf3 {[%clk 0:01:49.4]} 13... Ndc5 {[%clk
0:01:58.7]} 14. Bf5 {[%clk 0:01:39.5]} 14... Rd8 {[%clk 0:01:52.7]} 15. Qe1
{[%clk 0:01:36.5]} 15... g6 {[%clk 0:01:43.3]} 16. Bxe6 {[%clk 0:01:36.3]} 16...
Nxe6 {[%clk 0:01:43.2]} 17. Qe3 {[%clk 0:01:27.1]} 17... Qb6 {[%clk 0:01:34.8]}
18. Qxb6 {[%clk 0:01:24.6]} 18... axb6 {[%clk 0:01:35]} 19. Rfb1 {[%clk
0:01:24.1]} 19... Bh6 {[%clk 0:01:19.5]} 20. Rxb6 {[%clk 0:01:23.7]} 20... Nc5
{[%clk 0:01:20.1]} 21. e6 {[%clk 0:01:01.5]} 21... fxe6 {[%clk 0:01:06.4]} 22.
Be5 {[%clk 0:01:01]} 22... O-O {[%clk 0:01:06.3]} 23. a4 {[%clk 0:00:32.6]}
23... Bf4 {[%clk 0:00:38]} 24. Bd4 {[%clk 0:00:30.4]} 24... Rxd4 {[%clk
0:00:35.3]} 25. Nxd4 {[%clk 0:00:28.6]} 25... Be5 {[%clk 0:00:36]} 26. Nxe6
{[%clk 0:00:10.1]} 26... Nxe6 {[%clk 0:00:34.1]} 27. Rd1 {[%clk 0:00:04.8]}
27... Nc5 {[%clk 0:00:31.8]} 28. a5 {[%clk 0:00:04.5]} 28... Ra8 {[%clk
0:00:30.9]} 29. Rbb1 {[%clk 0:00:02.2]} 29... Rxa5 {[%clk 0:00:30.1]} 30. Rd8+
{[%clk 0:00:02.8]} 30... Kg7 {[%clk 0:00:30.1]} 31. Re1 {[%clk 0:00:03.4]} 31...
Bd6 {[%clk 0:00:24.8]} 32. Rc1 {[%clk 0:00:03.2]} 32... Ra2 {[%clk 0:00:23.3]}
33. g3 {[%clk 0:00:03.2]} 33... Nd3 {[%clk 0:00:22.4]} 34. Rf1 {[%clk
0:00:03.4]} 34... Nxf2 {[%clk 0:00:20]} 35. Kg2 {[%clk 0:00:01.1]} 35... Ne4+
{[%clk 0:00:19.4]} 36. Kf3 {[%clk 0:00:01.7]} 36... Nd2+ {[%clk 0:00:19.8]} 0-1

[Event "Late-Titled-Tuesday-Blitz-September-05-2023"]
[Site "Chess.com"]
[Date "2023.09.05"]
[Round "9"]
[White "Perdomov"]
[Black "PapaieDudu"]
[Result "0-1"]
[WhiteElo "2175"]
[BlackElo "2295"]
[TimeControl "180+1"]
[EndTime "15:45:18 PDT"]
[Termination "PapaieDudu won on time"]

1. e4 {[%clk 0:02:51.6]} 1... c5 {[%clk 0:03:00]} 2. d4 {[%clk 0:02:52.5]} 2...
cxd4 {[%clk 0:03:00.9]} 3. c3 {[%clk 0:02:52.7]} 3... dxc3 {[%clk 0:03:01.8]} 4.
Nxc3 {[%clk 0:02:53.4]} 4... Nc6 {[%clk 0:03:01.5]} 5. Nf3 {[%clk 0:02:54.3]}
5... d6 {[%clk 0:03:02.1]} 6. Bc4 {[%clk 0:02:55.2]} 6... Nf6 {[%clk 0:03:02]}
7. O-O {[%clk 0:02:55.4]} 7... e6 {[%clk 0:03:00.6]} 8. Bg5 {[%clk 0:02:55.2]}
8... Be7 {[%clk 0:03:00.5]} 9. Qe2 {[%clk 0:02:55.1]} 9... O-O {[%clk
0:02:59.4]} 10. Rfd1 {[%clk 0:02:54.4]} 10... Qc7 {[%clk 0:02:58.3]} 11. Bxf6
{[%clk 0:02:52.8]} 11... gxf6 {[%clk 0:02:54.6]} 12. Rac1 {[%clk 0:02:52.7]}
12... a6 {[%clk 0:02:53.2]} 13. Nh4 {[%clk 0:02:49]} 13... Qa5 {[%clk
0:02:28.4]} 14. Bd5 {[%clk 0:02:41.4]} 14... Ne5 {[%clk 0:02:18.8]} 15. f4
{[%clk 0:02:14.5]} 15... Ng6 {[%clk 0:02:17.2]} 16. b4 {[%clk 0:02:01.8]} 16...
Qxb4 {[%clk 0:02:02.3]} 17. Nxg6 {[%clk 0:01:42.9]} 17... hxg6 {[%clk
0:02:00.4]} 18. Bb3 {[%clk 0:01:34.9]} 18... Re8 {[%clk 0:01:42.3]} 19. Qg4
{[%clk 0:01:28.7]} 19... Kg7 {[%clk 0:01:30.4]} 20. Qg3 {[%clk 0:01:19.9]} 20...
Rd8 {[%clk 0:01:03.6]} 21. Ne2 {[%clk 0:01:07.6]} 21... Qxe4 {[%clk 0:00:51.2]}
22. Nd4 {[%clk 0:01:06.9]} 22... e5 {[%clk 0:00:33.6]} 23. Bc2 {[%clk
0:01:07.3]} 23... Qxf4 {[%clk 0:00:23.3]} 24. Qe1 {[%clk 0:01:00]} 24... exd4
{[%clk 0:00:18.3]} 25. Qxe7 {[%clk 0:01:00.1]} 25... Bg4 {[%clk 0:00:18.2]} 26.
Re1 {[%clk 0:00:54.2]} 26... Rd7 {[%clk 0:00:13.5]} 27. Qe4 {[%clk 0:00:44.2]}
27... Qxe4 {[%clk 0:00:14]} 28. Rxe4 {[%clk 0:00:45]} 28... Bf5 {[%clk
0:00:10.7]} 29. Rxd4 {[%clk 0:00:45.9]} 29... Rc8 {[%clk 0:00:10.5]} 30. g4
{[%clk 0:00:03.6]} 30... Rxc2 {[%clk 0:00:07.6]} 0-1

[Event "Late-Titled-Tuesday-Blitz-September-05-2023"]
[Site "Chess.com"]
[Date "2023.09.05"]
[Round "9"]
[White "EsmeraldasAnderson03"]
[Black "KejJaj"]
[Result "1-0"]
[WhiteElo "2420"]
[BlackElo "2224"]
[TimeControl "180+1"]
[EndTime "15:45:25 PDT"]
[Termination "EsmeraldasAnderson03 won by resignation"]

1. d4 {[%clk 0:03:00.9]} 1... f5 {[%clk 0:02:59.4]} 2. Bg5 {[%clk 0:03:00]} 2...
Nh6 {[%clk 0:02:59.1]} 3. Bxh6 {[%clk 0:03:00.1]} 3... gxh6 {[%clk 0:02:56.9]}
4. e3 {[%clk 0:03:00.8]} 4... e6 {[%clk 0:02:45.3]} 5. Qh5+ {[%clk 0:02:59.4]}
5... Ke7 {[%clk 0:02:44.7]} 6. Nf3 {[%clk 0:02:56.3]} 6... d6 {[%clk 0:02:41]}
7. Nc3 {[%clk 0:02:55.6]} 7... Nd7 {[%clk 0:02:38.7]} 8. Bc4 {[%clk 0:02:52.1]}
8... Nf6 {[%clk 0:02:37.8]} 9. Qh4 {[%clk 0:02:49.6]} 9... Kd7 {[%clk
0:02:27.2]} 10. O-O-O {[%clk 0:02:45.7]} 10... c6 {[%clk 0:02:15.5]} 11. Bb3
{[%clk 0:02:25.3]} 11... Kc7 {[%clk 0:02:12.4]} 12. e4 {[%clk 0:02:21.6]} 12...
fxe4 {[%clk 0:02:07.7]} 13. Nxe4 {[%clk 0:02:21.4]} 13... Nxe4 {[%clk 0:02:06]}
14. Qxe4 {[%clk 0:02:22.3]} 14... Qf6 {[%clk 0:01:57.7]} 15. Rhe1 {[%clk
0:02:20.1]} 15... Rg8 {[%clk 0:01:35.6]} 16. g3 {[%clk 0:02:04]} 16... Bd7
{[%clk 0:01:25.8]} 17. Bxe6 {[%clk 0:01:59.8]} 17... Re8 {[%clk 0:01:25.7]} 18.
d5 {[%clk 0:01:49.6]} 18... Bg7 {[%clk 0:01:00]} 19. Nd4 {[%clk 0:01:29.2]}
19... c5 {[%clk 0:00:57.1]} 20. Qf5 {[%clk 0:00:55.8]} 20... cxd4 {[%clk
0:00:34.5]} 21. Bxd7 {[%clk 0:00:54.9]} 21... Rxe1 {[%clk 0:00:32.8]} 22. Rxe1
{[%clk 0:00:55.8]} 22... d3 {[%clk 0:00:20]} 23. Qxf6 {[%clk 0:00:53.9]} 23...
Bxf6 {[%clk 0:00:18.7]} 24. Be6 {[%clk 0:00:51]} 24... Rf8 {[%clk 0:00:16.2]}
25. cxd3 {[%clk 0:00:50.2]} 25... Bd4 {[%clk 0:00:14.4]} 26. f4 {[%clk 0:00:50]}
26... h5 {[%clk 0:00:14.1]} 27. Re4 {[%clk 0:00:48.5]} 27... Bf6 {[%clk
0:00:11.5]} 28. b3 {[%clk 0:00:46]} 28... h4 {[%clk 0:00:11.3]} 29. g4 {[%clk
0:00:43.7]} 29... h6 {[%clk 0:00:11]} 30. h3 {[%clk 0:00:42.9]} 30... Kb6 {[%clk
0:00:07.6]} 31. Kd2 {[%clk 0:00:42]} 31... Re8 {[%clk 0:00:03.3]} 32. a4 {[%clk
0:00:40.2]} 32... Re7 {[%clk 0:00:02.4]} 33. Rc4 {[%clk 0:00:40.4]} 33... a6
{[%clk 0:00:01.9]} 34. Ke3 {[%clk 0:00:36]} 34... Ka7 {[%clk 0:00:02.6]} 35. Ke4
{[%clk 0:00:36.2]} 35... Rg7 {[%clk 0:00:02.5]} 36. Kf5 {[%clk 0:00:36.1]} 36...
Bb2 {[%clk 0:00:02.2]} 37. Rc8 {[%clk 0:00:34.1]} 37... Kb6 {[%clk 0:00:01.4]}
38. Rd8 {[%clk 0:00:25.7]} 38... Ka5 {[%clk 0:00:02]} 39. Rxd6 {[%clk
0:00:25.6]} 39... Kb4 {[%clk 0:00:02.7]} 40. Rd7 {[%clk 0:00:24.8]} 40... Kxb3
{[%clk 0:00:03.3]} 41. Rxg7 {[%clk 0:00:24.1]} 41... Kxa4 {[%clk 0:00:04.1]} 42.
Rxb7 {[%clk 0:00:23.3]} 42... a5 {[%clk 0:00:04.2]} 43. d6 {[%clk 0:00:23.9]}
43... Bc3 {[%clk 0:00:02.4]} 44. d7 {[%clk 0:00:24.1]} 1-0